fUSD/lending_fUSD_20250304
["ID","MTS","AMOUNT","RATE_DAILY","PERIOD"]
[355378278,1741085529876,-3619.958,0.00043053,120]
[355378279,1741085529901,-3619.958,0.00043053,120]
[355378280,1741085529925,-3619.958,0.00043053,120]
[355378281,1741085529950,-203.0,0.0004308,30]
[355378282,1741085529974,-623.26382276,0.00043089,30]
[355378283,1741085529998,-154.99678267,0.00043089,30]
[355378284,1741085530023,-271.99294183,0.00043089,30]
[355378285,1741085530047,-623.26382276,0.00043136,30]
[355378286,1741085530072,-154.99678267,0.00043136,30]
[355378287,1741085530096,-271.99294183,0.00043136,30]
[355378288,1741085530120,-150.0,0.00043172,30]
[355378289,1741085530144,-623.26382276,0.00043183,30]
[355378290,1741085530169,-154.99678267,0.00043183,30]
[355378291,1741085530194,-271.99294183,0.00043183,30]
[355378292,1741085530219,-623.26382276,0.0004323,30]
[355378293,1741085530243,-154.99678267,0.0004323,30]
[355378294,1741085530268,-271.99294183,0.0004323,30]
[355378295,1741085530292,-623.26382276,0.00043277,30]
[355378296,1741085530317,-154.99678267,0.00043277,30]
[355378297,1741085530345,-271.99294183,0.00043277,30]
[355378298,1741085530370,-800.0,0.00043282,60]
[355378299,1741085530395,-500.0,0.00043287,120]
[355378300,1741085530421,-150.0,0.00043298,30]
[355378301,1741085530445,-623.26382276,0.00043324,30]
[355378302,1741085530471,-154.99678267,0.00043324,30]
[355378303,1741085530496,-271.99294183,0.00043324,30]
[355378304,1741085530521,-623.26382276,0.00043371,30]
[355378305,1741085530545,-154.99678267,0.00043371,30]
[355378306,1741085530569,-271.99294183,0.00043371,30]
[355378307,1741085530594,-623.26382276,0.00043418,30]
[355378308,1741085530618,-154.99678267,0.00043418,30]
[355378309,1741085530643,-271.99294183,0.00043418,30]
[355378310,1741085530667,-150.0,0.00043423,30]
[355378311,1741085530693,-623.26382276,0.00043465,30]
[355378312,1741085530717,-154.99678267,0.00043465,30]
[355378313,1741085530743,-271.99294183,0.00043465,30]
[355378314,1741085530767,-150.0,0.00043465,30]
[355378315,1741085530792,-156.91208486,0.000435,120]
[355378316,1741085530817,-623.26382276,0.00043512,30]
[355378317,1741085530841,-154.99678267,0.00043512,30]
[355378318,1741085530866,-271.99294183,0.00043512,30]
[355378319,1741085530891,-1689.68217015,0.00043533,120]
[355378320,1741085530916,-150.0,0.00043549,30]
[355378321,1741085530940,-394.69599797,0.00043557,120]
[355378322,1741085530964,-623.26382276,0.00043559,30]
[355378323,1741085530989,-154.99678267,0.00043559,30]
[355378324,1741085531013,-271.99294183,0.00043559,30]
[355378325,1741085531037,-2110.0,0.0004357,30]
[355378326,1741085531062,-623.26382276,0.00043606,30]
[355378327,1741085531086,-154.99678267,0.00043606,30]
[355378328,1741085531111,-271.99294183,0.00043606,30]
[355378329,1741085531135,-394.69599797,0.00043634,120]
[355378330,1741085531160,-623.26382276,0.00043653,30]
[355378331,1741085531184,-154.99678267,0.00043653,30]
[355378332,1741085531209,-271.99294183,0.00043653,30]
[355378333,1741085531233,-1689.68217015,0.00043661,120]
[355378334,1741085531257,-394.69599797,0.00043661,120]
[355378335,1741085531282,-2496.65576015,0.00043675,120]
[355378336,1741085531306,-150.0,0.00043675,30]
[355378337,1741085531331,-394.69599797,0.00043677,120]
[355378338,1741085531359,-2496.65576015,0.00043691,120]
[355378339,1741085531385,-2496.65576015,0.00043695,120]
[355378340,1741085531409,-623.26382276,0.00043701,30]
[355378341,1741085531438,-154.99678267,0.00043701,30]
[355378342,1741085531462,-271.99294183,0.00043701,30]
[355378343,1741085531487,-1689.68217015,0.00043709,120]
[355378344,1741085531512,-2496.65576015,0.00043715,120]
[355378345,1741085531707,-623.26382276,0.00043748,30]
[355378346,1741085531733,-154.99678267,0.00043748,30]
[355378347,1741085531757,-271.99294183,0.00043748,30]
[355378348,1741085531783,-1689.68217015,0.0004375,120]
[355378349,1741085531807,-623.26382276,0.00043795,30]
[355378350,1741085531835,-154.99678267,0.00043795,30]
[355378351,1741085531859,-271.99294183,0.00043795,30]
[355378352,1741085531883,-3392.23612512,0.000438,120]
[355378353,1741085531906,-150.0,0.00043801,30]
[355378354,1741085531931,-800.0,0.0004383,60]
[355378355,1741085531956,-500.0,0.0004383,120]
[355378356,1741085531981,-1279.67,0.00043835,120]
[355378357,1741085532005,-250.97957476,0.00043836,31]
[355378358,1741085532028,-585.61900779,0.00043836,31]
[355378359,1741085532052,-623.26382276,0.00043842,30]
[355378360,1741085532076,-154.99678267,0.00043842,30]
[355378361,1741085532101,-271.99294183,0.00043842,30]
[355378362,1741085532125,-623.26382276,0.00043889,30]
[355378363,1741085532151,-154.99678267,0.00043889,30]
[355378364,1741085532178,-271.99294183,0.00043889,30]
[355378365,1741085532204,-150.0,0.00043927,30]
[355378366,1741085532229,-623.26382276,0.00043936,30]
[355378367,1741085532253,-154.99678267,0.00043936,30]
[355378368,1741085532278,-271.99294183,0.00043936,30]
[355378369,1741085532303,-623.26382276,0.00043983,30]
[355378370,1741085532332,-154.99678267,0.00043983,30]
[355378371,1741085532364,-271.99294183,0.00043983,30]
[355378372,1741085532392,-1000000.0,0.00044,120]
[355378373,1741085532419,-2000000.0,0.00044,120]
[355378374,1741085532444,-1500.0,0.00044,120]
[355378375,1741085532468,-1500.0,0.00044,120]
[355378376,1741085532492,-1500.0,0.00044,120]
[355378377,1741085532517,-1500.0,0.00044,120]
[355378378,1741085532541,-1500.0,0.00044,120]
[355378379,1741085532565,-1500.0,0.00044,120]
[355378380,1741085532589,-1500.0,0.00044,120]
[355378381,1741085532613,-1205.36419995,0.00044,120]
[355378382,1741085532637,-623.26382276,0.0004403,30]
[355378383,1741085532661,-154.99678267,0.0004403,30]
[355378384,1741085532686,-271.99294183,0.0004403,30]
[355378385,1741085532711,-150.0,0.00044053,30]
[355378386,1741085532734,-2110.0,0.0004407,30]
[355378387,1741085532758,-623.26382276,0.00044077,30]
[355378388,1741085532784,-154.99678267,0.00044077,30]
[355378389,1741085532809,-271.99294183,0.00044077,30]
[355378390,1741085532835,-623.26382276,0.00044124,30]
[355378391,1741085532859,-154.99678267,0.00044124,30]
[355378392,1741085532883,-271.99294183,0.00044124,30]
[355378393,1741085532908,-623.26382276,0.00044171,30]
[355378394,1741085532933,-154.99678267,0.00044171,30]
[355378395,1741085532959,-271.99294183,0.00044171,30]
[355378396,1741085532984,-150.0,0.00044179,30]
[355378397,1741085533008,-623.26382276,0.00044218,30]
[355378398,1741085533032,-154.99678267,0.00044218,30]
[355378399,1741085533056,-271.99294183,0.00044218,30]
[355378400,1741085533081,-1061.0,0.00044242,30]
[355378401,1741085533105,-150.0,0.00044242,30]
[355378402,1741085533129,-1952713.91911466,0.0004425,120]
[355378403,1741085545706,-688.81927226,0.000372,103]
[355378404,1741085545735,-688.81927222,0.000372,103]
[355378405,1741085545761,-688.81927222,0.000372,103]
[355378406,1741085545787,-688.81927222,0.000372,103]
[355378407,1741085545815,-999.0,0.00041068,120]
[355378408,1741085545840,-999.0,0.00041068,120]
[355378409,1741085545866,-999.0,0.00041068,120]
[355378410,1741085545890,-999.0,0.00041068,120]
[355378411,1741085545916,-999.0,0.00041068,120]
[355378412,1741085545942,-999.0,0.00041068,120]
[355378413,1741085545968,-999.0,0.00041068,120]
[355378414,1741085545993,-999.0,0.00041068,120]
[355378415,1741085546018,-999.0,0.00041068,120]
[355378416,1741085546044,-999.0,0.00041068,120]
[355378417,1741085546069,-999.0,0.00041068,120]
[355378418,1741085546093,-999.0,0.00041068,120]
[355378419,1741085546118,-999.0,0.00041068,120]
[355378420,1741085546143,-363.09962624,0.00041068,120]
[355378421,1741085546170,-47286.08088534,0.0004425,120]
[355378422,1741085546195,-150.0,0.0004425,30]
[355378423,1741085546220,-623.26382276,0.00044265,30]
[355378424,1741085546244,-154.99678267,0.00044265,30]
[355378425,1741085546268,-271.99294183,0.00044265,30]
[355378426,1741085546292,-150.0,0.00044304,30]
[355378427,1741085546318,-623.26382276,0.00044312,30]
[355378428,1741085546345,-154.99678267,0.00044312,30]
[355378429,1741085546369,-271.99294183,0.00044312,30]
[355378430,1741085546394,-623.26382276,0.00044359,30]
[355378431,1741085546420,-154.99678267,0.00044359,30]
[355378432,1741085546445,-271.99294183,0.00044359,30]
[355378433,1741085546474,-800.0,0.00044378,120]
[355378434,1741085546499,-500.0,0.00044378,120]
[355378435,1741085546523,-500.0,0.00044383,120]
[355378436,1741085546548,-623.26382276,0.00044406,30]
[355378437,1741085546572,-154.99678267,0.00044406,30]
[355378438,1741085546597,-271.99294183,0.00044406,30]
[355378439,1741085546621,-150.0,0.0004443,30]
[355378440,1741085546647,-623.26382276,0.00044453,30]
[355378441,1741085546671,-154.99678267,0.00044453,30]
[355378442,1741085546695,-271.99294183,0.00044453,30]
[355378443,1741085546720,-2000000.0,0.000445,120]
[355378444,1741085546745,-623.26382276,0.000445,30]
[355378445,1741085546771,-154.99678267,0.000445,30]
[355378446,1741085546798,-271.99294183,0.000445,30]
[355378447,1741085546827,-623.26382276,0.00044547,30]
[355378448,1741085546855,-154.99678267,0.00044547,30]
[355378449,1741085546884,-271.99294183,0.00044547,30]
[355378450,1741085546911,-150.0,0.00044556,30]
[355378451,1741085546938,-2110.0,0.0004457,30]
[355378452,1741085546968,-623.26382276,0.00044594,30]
[355378453,1741085547000,-154.99678267,0.00044594,30]
[355378454,1741085547029,-271.99294183,0.00044594,30]
[355378455,1741085547062,-15987.99,0.00044636,117]
[355378456,1741085547092,-623.26382276,0.00044641,30]
[355378457,1741085547122,-154.99678267,0.00044641,30]
[355378458,1741085547151,-271.99294183,0.00044641,30]
[355378459,1741085547181,-150.0,0.00044682,30]
[355378460,1741085547212,-623.26382276,0.00044688,30]
[355378461,1741085547243,-154.99678267,0.00044688,30]
[355378462,1741085547274,-271.99294183,0.00044688,30]
[355378463,1741085547304,-5014.28135,0.00044707,30]
[355378464,1741085547335,-150.0,0.00044729,120]
[355378465,1741085547367,-623.26382276,0.00044735,30]
[355378466,1741085547398,-154.99678267,0.00044735,30]
[355378467,1741085547428,-271.99294183,0.00044735,30]
[355378468,1741085547458,-2000000.0,0.0004475,120]
[355378469,1741085547488,-623.26382276,0.00044782,30]
[355378470,1741085547518,-154.99678267,0.00044782,30]
[355378471,1741085547546,-271.99294183,0.00044782,30]
[355378472,1741085547573,-150.0,0.00044808,30]
[355378473,1741085547601,-203.0,0.0004482,30]
[355378474,1741085547629,-623.26382276,0.0004483,30]
[355378475,1741085547659,-154.99678267,0.0004483,30]
[355378476,1741085547687,-271.99294183,0.0004483,30]
[355378477,1741085547716,-623.26382276,0.00044877,30]
[355378478,1741085547743,-154.99678267,0.00044877,30]
[355378479,1741085547967,-271.99294183,0.00044877,30]
[355378480,1741085548007,-623.26382276,0.00044924,30]
[355378481,1741085548042,-154.99678267,0.00044924,30]
[355378482,1741085548076,-271.99294183,0.00044924,30]
[355378483,1741085548108,-800.0,0.00044926,120]
[355378484,1741085548140,-500.0,0.00044926,120]
[355378485,1741085548172,-150.0,0.00044934,30]
[355378486,1741085548205,-623.26382276,0.00044971,30]
[355378487,1741085548237,-154.99678267,0.00044971,30]
[355378488,1741085548270,-271.99294183,0.00044971,30]
[355378489,1741085548303,-151.0,0.00045,120]
[355378490,1741085548337,-1000000.0,0.00045,120]
[355378491,1741085548367,-151.0,0.00045,120]
[355378492,1741085548398,-891887.21429334,0.00045,120]
[355378493,1741085554197,-688.81927222,0.000372,103]
[355378494,1741085554467,-1108112.78570666,0.00045,120]
[355378495,1741085554494,-4000.85062795,0.00045,120]
[355378496,1741085554522,-2179.67203437,0.00045,120]
[355378497,1741085554548,-11999.99999901,0.00045,60]
[355378498,1741085554575,-5000.0,0.00045,30]
[355378499,1741085554603,-623.26382276,0.00045018,30]
[355378500,1741085554629,-154.99678267,0.00045018,30]
[355378501,1741085554655,-271.99294183,0.00045018,30]
[355378502,1741085554682,-150.0,0.00045018,30]
[355378503,1741085554710,-150.0,0.0004506,30]
[355378504,1741085554736,-623.26382276,0.00045065,30]
[355378505,1741085554762,-154.99678267,0.00045065,30]
[355378506,1741085554788,-271.99294183,0.00045065,30]
[355378507,1741085554813,-2110.0,0.0004507,30]
[355378508,1741085554838,-623.26382276,0.00045112,30]
[355378509,1741085554863,-154.99678267,0.00045112,30]
[355378510,1741085554889,-271.99294183,0.00045112,30]
[355378511,1741085554915,-623.26382276,0.00045159,30]
[355378512,1741085554943,-154.99678267,0.00045159,30]
[355378513,1741085554970,-271.99294183,0.00045159,30]
[355378514,1741085554995,-150.0,0.00045185,30]
[355378515,1741085555022,-623.26382276,0.00045206,30]
[355378516,1741085555048,-154.99678267,0.00045206,30]
[355378517,1741085555073,-271.99294183,0.00045206,30]
[355378518,1741085555099,-2000000.0,0.0004525,120]
[355378519,1741085555123,-623.26382276,0.00045253,30]
[355378520,1741085555148,-154.99678267,0.00045253,30]
[355378521,1741085555174,-271.99294183,0.00045253,30]
[355378522,1741085555200,-623.26382276,0.000453,30]
[355378523,1741085555226,-154.99678267,0.000453,30]
[355378524,1741085555251,-271.99294183,0.000453,30]
[355378525,1741085555276,-150.0,0.00045311,30]
[355378526,1741085555302,-623.26382276,0.00045347,30]
[355378527,1741085555329,-154.99678267,0.00045347,30]
[355378528,1741085555361,-271.99294183,0.00045347,30]
[355378529,1741085555389,-623.26382276,0.00045394,30]
[355378530,1741085555415,-154.99678267,0.00045394,30]
[355378531,1741085555443,-271.99294183,0.00045394,30]
[355378532,1741085555471,-150.0,0.00045437,30]
[355378533,1741085555497,-623.26382276,0.00045441,30]
[355378534,1741085555523,-154.99678267,0.00045441,30]
[355378535,1741085555552,-271.99294183,0.00045441,30]
[355378536,1741085555578,-800.0,0.00045474,120]
[355378537,1741085555604,-500.0,0.00045474,120]
[355378538,1741085555631,-500.0,0.00045479,120]
[355378539,1741085555657,-150.0,0.00045479,30]
[355378540,1741085555684,-623.26382276,0.00045488,30]
[355378541,1741085555710,-154.99678267,0.00045488,30]
[355378542,1741085555736,-271.99294183,0.00045488,30]
[355378543,1741085555762,-1000000.0,0.000455,120]
[355378544,1741085555788,-851655.08333993,0.000455,120]
[355378545,1741085568515,-4557.16,0.000406,30]
[355378546,1741085568543,-7563.74,0.00044,120]
[355378547,1741085568570,-1148344.91666007,0.000455,120]
[355378548,1741085568596,-839.36432455,0.000455,120]
[355378549,1741085568622,-150.0,0.000455,30]
[355378550,1741085568647,-623.26382276,0.00045535,30]
[355378551,1741085568672,-154.99678267,0.00045535,30]
[355378552,1741085568697,-271.99294183,0.00045535,30]
[355378553,1741085568723,-150.0,0.00045563,30]
[355378554,1741085568749,-150.0,0.00045568,120]
[355378555,1741085568775,-207.95,0.0004557,120]
[355378556,1741085568800,-7570.21,0.0004557,120]
[355378557,1741085568825,-209.58,0.0004557,120]
[355378558,1741085568849,-7557.75,0.0004557,120]
[355378559,1741085568874,-7358.46,0.0004557,120]
[355378560,1741085568899,-205.83,0.0004557,120]
[355378561,1741085568924,-7581.12,0.0004557,120]
[355378562,1741085568948,-344.15669657,0.0004557,120]
[355378563,1741085568974,-7589.56,0.0004557,120]
[355378564,1741085568999,-7430.9,0.0004557,120]
[355378565,1741085569024,-7544.88,0.0004557,120]
[355378566,1741085569049,-2110.0,0.0004557,30]
[355378567,1741085569074,-710915.77700491,0.00045573,120]
[355378568,1741085569099,-623.26382276,0.00045582,30]
[355378569,1741085569123,-154.99678267,0.00045582,30]
[355378570,1741085569148,-271.99294183,0.00045582,30]
[355378571,1741085569173,-5498.16026573,0.000456,120]
[355378572,1741085569198,-623.26382276,0.00045629,30]
[355378573,1741085569224,-154.99678267,0.00045629,30]
[355378574,1741085569250,-271.99294183,0.00045629,30]
[355378575,1741085569276,-623.26382276,0.00045676,30]
[355378576,1741085569303,-154.99678267,0.00045676,30]
[355378577,1741085569501,-271.99294183,0.00045676,30]
[355378578,1741085569529,-150.0,0.00045689,30]
[355378579,1741085569554,-359.52365241,0.000457,120]
[355378580,1741085569579,-623.26382276,0.00045723,30]
[355378581,1741085569603,-154.99678267,0.00045723,30]
[355378582,1741085569628,-271.99294183,0.00045723,30]
[355378583,1741085569653,-2000000.0,0.0004575,120]
[355378584,1741085569677,-623.26382276,0.0004577,30]
[355378585,1741085569701,-154.99678267,0.0004577,30]
[355378586,1741085569726,-271.99294183,0.0004577,30]
[355378587,1741085569751,-150.0,0.00045815,30]
[355378588,1741085569777,-623.26382276,0.00045817,30]
[355378589,1741085569802,-154.99678267,0.00045817,30]
[355378590,1741085569826,-271.99294183,0.00045817,30]
[355378591,1741085569851,-623.26382276,0.00045864,30]
[355378592,1741085569875,-154.99678267,0.00045864,30]
[355378593,1741085569900,-271.99294183,0.00045864,30]
[355378594,1741085569924,-1930.40783,0.00045888,30]
[355378595,1741085569948,-623.26382276,0.00045911,30]
[355378596,1741085569975,-154.99678267,0.00045911,30]
[355378597,1741085570002,-271.99294183,0.00045911,30]
[355378598,1741085570027,-150.0,0.00045941,30]
[355378599,1741085570053,-623.26382276,0.00045958,30]
[355378600,1741085570078,-154.99678267,0.00045958,30]
[355378601,1741085570102,-271.99294183,0.00045958,30]
[355378602,1741085570127,-14848.10701806,0.00046,30]
[355378603,1741085570152,-1000000.0,0.00046,120]
[355378604,1741085570177,-38029.9110751,0.00046,120]
[355378605,1741085570614,1000.0,0.00010052,2]
[355378606,1741085574506,-150.0,0.000455,30]
[355378607,1741085574534,-1961970.0889249,0.00046,120]
[355378608,1741085574560,-1000.0,0.00046,30]
[355378609,1741085574586,-3049.74054687,0.00046,30]
[355378610,1741085574613,-623.26382276,0.00046006,30]
[355378611,1741085574640,-154.99678267,0.00046006,30]
[355378612,1741085574667,-271.99294183,0.00046006,30]
[355378613,1741085574692,-800.0,0.00046022,120]
[355378614,1741085574716,-500.0,0.00046022,90]
[355378615,1741085574742,-500.0,0.00046022,90]
[355378616,1741085574767,-500.0,0.00046022,90]
[355378617,1741085574792,-500.0,0.00046022,90]
[355378618,1741085574817,-500.0,0.00046022,90]
[355378619,1741085574840,-500.0,0.00046022,90]
[355378620,1741085574864,-500.0,0.00046022,90]
[355378621,1741085574887,-500.0,0.00046022,90]
[355378622,1741085574911,-500.0,0.00046022,90]
[355378623,1741085574935,-500.0,0.00046022,90]
[355378624,1741085574960,-500.0,0.00046022,90]
[355378625,1741085574984,-500.0,0.00046022,90]
[355378626,1741085575008,-500.0,0.00046022,90]
[355378627,1741085575032,-500.0,0.00046022,90]
[355378628,1741085575057,-500.0,0.00046022,90]
[355378629,1741085575081,-500.0,0.00046022,90]
[355378630,1741085575106,-500.0,0.00046022,90]
[355378631,1741085575361,-500.0,0.00046022,90]
[355378632,1741085575389,-500.0,0.00046022,90]
[355378633,1741085575414,-500.0,0.00046022,90]
[355378634,1741085575439,-623.26382276,0.00046053,30]
[355378635,1741085575464,-154.99678267,0.00046053,30]
[355378636,1741085575488,-271.99294183,0.00046053,30]
[355378637,1741085575512,-150.0,0.00046067,30]
[355378638,1741085575537,-224.46,0.0004607,120]
[355378639,1741085575562,-225.39,0.0004607,120]
[355378640,1741085575587,-229.19,0.0004607,120]
[355378641,1741085575613,-226.74,0.0004607,120]
[355378642,1741085575639,-220.74,0.0004607,120]
[355378643,1741085575664,-220.94,0.0004607,120]
[355378644,1741085575689,-2110.0,0.0004607,30]
[355378645,1741085575715,-1930.40783,0.00046088,30]
[355378646,1741085575742,-623.26382276,0.000461,30]
[355378647,1741085575768,-154.99678267,0.000461,30]
[355378648,1741085575793,-271.99294183,0.000461,30]
[355378649,1741085575818,-623.26382276,0.00046147,30]
[355378650,1741085575843,-154.99678267,0.00046147,30]
[355378651,1741085575868,-271.99294183,0.00046147,30]
[355378652,1741085575893,-150.0,0.00046192,30]
[355378653,1741085575917,-623.26382276,0.00046194,30]
[355378654,1741085575941,-154.99678267,0.00046194,30]
[355378655,1741085575967,-271.99294183,0.00046194,30]
[355378656,1741085575994,-623.26382276,0.00046241,30]
[355378657,1741085576019,-154.99678267,0.00046241,30]
[355378658,1741085576044,-271.99294183,0.00046241,30]
[355378659,1741085576069,-2000000.0,0.0004625,120]
[355378660,1741085576096,-623.26382276,0.00046288,30]
[355378661,1741085576121,-154.99678267,0.00046288,30]
[355378662,1741085576147,-271.99294183,0.00046288,30]
[355378663,1741085576172,-1930.40783,0.00046288,30]
[355378664,1741085576198,-327486.48745171,0.000463,120]
[355378665,1741085576222,-440.31,0.00046301,30]
[355378666,1741085576247,-150.0,0.00046318,30]
[355378667,1741085576272,-623.26382276,0.00046335,30]
[355378668,1741085576297,-154.99678267,0.00046335,30]
[355378669,1741085576321,-271.99294183,0.00046335,30]
[355378670,1741085576349,-623.26382276,0.00046382,30]
[355378671,1741085576376,-154.99678267,0.00046382,30]
[355378672,1741085576403,-271.99294183,0.00046382,30]
[355378673,1741085576428,-623.26382276,0.00046429,30]
[355378674,1741085576453,-154.99678267,0.00046429,30]
[355378675,1741085576478,-271.99294183,0.00046429,30]
[355378676,1741085576502,-882.38,0.00046438,30]
[355378677,1741085576527,-150.0,0.00046444,30]
[355378678,1741085576553,-623.26382276,0.00046476,30]
[355378679,1741085576578,-154.99678267,0.00046476,30]
[355378680,1741085576602,-271.99294183,0.00046476,30]
[355378681,1741085576627,-1930.40783,0.00046488,30]
[355378682,1741085576651,-2434.84734915,0.000465,30]
[355378683,1741085576675,-140709.49069658,0.000465,30]
[355378684,1741085576700,-529675.18252093,0.000465,120]
[355378685,1741085579770,-500.0,0.00042734,60]
[355378686,1741085579797,-500.0,0.0004383,120]
[355378687,1741085579822,-7384.44,0.000445,120]
[355378688,1741085579849,-220.98,0.000455,120]
[355378689,1741085579876,-1470324.81747907,0.000465,120]
[355378690,1741085579902,-623.26382276,0.00046523,30]
[355378691,1741085579927,-154.99678267,0.00046523,30]
[355378692,1741085579952,-271.99294183,0.00046523,30]
[355378693,1741085579977,-17128.5,0.00046545,117]
[355378694,1741085580002,-800.0,0.0004657,120]
[355378695,1741085580027,-1061.0,0.0004657,30]
[355378696,1741085580053,-203.0,0.0004657,30]
[355378697,1741085580079,-231.0,0.0004657,30]
[355378698,1741085580104,-623.26382276,0.0004657,30]
[355378699,1741085580130,-154.99678267,0.0004657,30]
[355378700,1741085580156,-276.62598697,0.0004657,30]
[355378701,1741085580183,-271.99294183,0.0004657,30]
[355378702,1741085580209,-284.22760667,0.0004657,30]
[355378703,1741085580233,-267.87177494,0.0004657,30]
[355378704,1741085580258,-2110.0,0.0004657,30]
[355378705,1741085580283,-1000.0,0.00046575,120]
[355378706,1741085580309,-500.0,0.00046575,120]
[355378707,1741085580338,-2000.0,0.00046575,120]
[355378708,1741085580369,-1930.40783,0.00046688,30]
[355378709,1741085580396,-2000000.0,0.0004675,120]
[355378710,1741085580422,-1930.40783,0.00046888,30]
[355378711,1741085580449,-2000.0,0.00046907,120]
[355378712,1741085580478,-1000.0,0.00047,90]
[355378713,1741085580503,-750.0,0.00047,120]
[355378714,1741085580528,-900.0,0.00047,48]
[355378715,1741085580783,-34000.0,0.00047,120]
[355378716,1741085580811,-1000000.0,0.00047,120]
[355378717,1741085580836,-450596.21439783,0.00047,120]
[355378718,1741085677546,587.29,8.219e-05,2]
[355378719,1741085784511,1000.0,8e-05,2]
[355378720,1741085801812,1000.0,9e-05,2]
[355378721,1741085818376,612.65,0.00010056,2]
[355378722,1741085821874,1000.0,0.0001,2]
[355378723,1741085838900,218.0,0.0001,2]
[355378724,1741085886308,200.0,0.00010056,2]
[355378725,1741086151138,250.0,0.0001005,2]
[355378726,1741086179621,200.0,0.00010103,2]
[355378727,1741086322270,222.0,0.00020011,120]
[355378728,1741086382687,748.44,0.00010091,2]
[355378729,1741086421662,153.63,0.00010055,2]
[355378731,1741086570901,1000.0,9.996e-05,2]
[355378738,1741086631955,-159.54,0.00010311,2]
[355378739,1741086631965,-150.0,0.00010395,2]
[355378740,1741086631975,-165.95962009,0.00010479,2]
[355378741,1741086632008,-421.33037991,0.00010479,2]
[355378742,1741086632018,-243.95512009,0.00010493,2]
[355378743,1741086632030,-306.04487991,0.00010493,2]
[355378744,1741086632039,-153.63,0.00010507,2]
[355378745,1741086632049,-180.77078563,0.000106,2]
[355378746,1741086632058,-600.0,0.000107,3]
[355378747,1741086632067,-1200.0,0.000108,3]
[355378748,1741086632077,-242.14985473,0.00010882,2]
[355378749,1741086632089,-487.96674527,0.00010882,2]
[355378750,1741086632098,-223.89121284,0.00010882,2]
[355378751,1741086632107,-300.0,0.00010882,2]
[355378752,1741086632118,-1925.03587752,0.00010883,2]
[355378753,1741086632131,-1050.0,0.00010883,2]
[355378754,1741086632154,-463.5345,0.00010883,2]
[355378755,1741086632166,-1199.03640389,0.00010883,2]
[355378756,1741086632178,-6494.21138647,0.00010883,2]
[355378757,1741086632197,-949.94196682,0.00010883,2]
[355378758,1741086632208,-550.05803318,0.00010883,2]
[355378759,1741086632219,-561.19269458,0.00010883,2]
[355378760,1741086632230,-1850.45,0.00010883,2]
[355378761,1741086632241,-914.09130211,0.00010883,2]
[355378762,1741086632252,-275.62899589,0.00010883,2]
[355378765,1741086637777,-3592.65,0.00010883,2]
[355378766,1741086637886,-342.86271799,0.00010883,2]
[355378767,1741086637898,-730.02762155,0.00010883,2]
[355378768,1741086637908,-597.02302146,0.00010884,2]
[355378769,1741086637941,-630.76867854,0.00010884,2]
[355378770,1741086637950,-270.7763,0.00010884,2]
[355378771,1741086637960,-459.17868668,0.000109,3]
[355378772,1741086638194,-654.06454835,0.000109,3]
[355378816,1741086638635,-289.18728201,0.000109,3]
[355378819,1741086638652,-281.78311804,0.000109,3]
[355378823,1741086638675,-215.78636492,0.000109,3]
[355378825,1741086638686,-224.02545836,0.000109,2]
[355378827,1741086638701,-505.07454164,0.000109,2]
[355378829,1741086638710,-300.0,0.000109,2]
[355378831,1741086638720,-124.62236622,0.0001096,2]
[355378975,1741086640209,-29.00763378,0.0001096,2]
[355378977,1741086640219,-150.0,0.00010981,2]
[355378979,1741086640229,-500.0,0.00010982,2]
[355378981,1741086640239,-635.92,0.00010982,2]
[355378983,1741086640249,-927.33,0.00010982,2]
[355378985,1741086640258,-512.96,0.00010982,2]
[355378987,1741086640268,-514.37,0.00010982,2]